fUSD/lending_fUSD_20240225
["ID","MTS","AMOUNT","RATE_DAILY","PERIOD"]
[315132836,1708866638173,-500.0,0.00024797,2]
[315132837,1708866638182,-500.0,0.00024797,2]
[315132838,1708866638192,-500.0,0.00024797,2]
[315132839,1708866638201,-500.0,0.00024797,2]
[315132840,1708866638211,-388.78353278,0.00024797,2]
[315132841,1708866638220,-500.0,0.00024797,2]
[315132842,1708866638229,-500.0,0.00024797,2]
[315132843,1708866638238,-625.21,0.00024797,2]
[315132844,1708866638247,-500.0,0.00024797,2]
[315132845,1708866638257,-552.53023581,0.00024797,2]
[315132846,1708866638266,-500.0,0.00024797,2]
[315132847,1708866638275,-500.0,0.00024797,2]
[315132848,1708866638284,-500.0,0.00024797,2]
[315132849,1708866638293,-179.94278956,0.00024797,2]
[315132850,1708866638303,-500.0,0.00024797,2]
[315132851,1708866638313,-500.0,0.00024797,2]
[315132852,1708866638322,-500.0,0.00024797,2]
[315132853,1708866638331,-500.0,0.00024797,2]
[315132854,1708866638340,-513.60497776,0.00024797,2]
[315132856,1708866638350,-500.0,0.00024797,2]
[315132858,1708866638360,-500.0,0.00024797,2]
[315132860,1708866638371,-500.0,0.00024797,2]
[315132862,1708866638380,-500.0,0.00024797,2]
[315132864,1708866638389,-500.0,0.00024797,2]
[315132866,1708866638398,-500.0,0.00024797,2]
[315132868,1708866638407,-500.0,0.00024797,2]
[315132870,1708866638417,-500.0,0.00024797,2]
[315132872,1708866638426,-500.0,0.00024797,2]
[315132874,1708866638438,-800.53,0.00024797,2]
[315132876,1708866638448,-524.02,0.00024797,2]
[315132878,1708866638458,-500.0,0.00024797,2]
[315132879,1708866638467,-951.15,0.00024797,2]
[315132880,1708866638477,-500.0,0.00024797,2]
[315132881,1708866638486,-500.0,0.00024797,2]
[315132882,1708866638495,-500.0,0.00024797,2]
[315132883,1708866638505,-500.0,0.00024797,2]
[315132884,1708866638516,-500.0,0.00024797,2]
[315132885,1708866638526,-500.0,0.00024797,2]
[315132886,1708866638535,-627.25,0.00024797,2]
[315132887,1708866638545,-500.0,0.00024797,2]
[315132888,1708866638555,-500.0,0.00024797,2]
[315132889,1708866638564,-634.23,0.00024797,2]
[315132890,1708866638573,-805.93,0.00024797,2]
[315132891,1708866638582,-861.71,0.00024797,2]
[315132892,1708866638591,-500.0,0.00024797,2]
[315132893,1708866638601,-500.0,0.00024797,2]
[315132894,1708866638610,-500.0,0.00024797,2]
[315132895,1708866638619,-500.0,0.00024797,2]
[315132896,1708866638628,-745.12,0.00024797,2]
[315132897,1708866638637,-500.0,0.00024797,2]
[315132898,1708866638647,-729.16,0.00024797,2]
[315132899,1708866638656,-1443.97,0.00024797,2]
[315132900,1708866638665,-500.0,0.00024797,2]
[315132901,1708866638675,-1111.3,0.00024797,2]
[315132902,1708866638684,-500.0,0.00024797,2]
[315132903,1708866638693,-2431.75,0.00024797,2]
[315132904,1708866638703,-560.02,0.00024797,2]
[315132905,1708866638712,-2791.03,0.00024797,2]
[315132906,1708866638722,-500.0,0.00024797,2]
[315132907,1708866638731,-500.0,0.00024797,2]
[315132908,1708866638741,-500.0,0.00024797,2]
[315132909,1708866638751,-500.0,0.00024797,2]
[315132910,1708866638760,-500.0,0.00024797,2]
[315132911,1708866638770,-553.25,0.00024797,2]
[315132912,1708866638779,-500.0,0.00024797,2]
[315132913,1708866638789,-500.0,0.00024797,2]
[315132914,1708866638800,-638.61,0.00024797,2]
[315132915,1708866638809,-558.11,0.00024797,2]
[315132916,1708866638818,-500.0,0.00024797,2]
[315132917,1708866638828,-500.0,0.00024797,2]
[315132918,1708866638837,-2134.28,0.00024797,2]
[315132919,1708866638846,-1678.17,0.00024797,2]
[315132920,1708866638857,-587.25,0.00024797,2]
[315132921,1708866638867,-500.0,0.00024797,2]
[315132922,1708866638876,-2245.68,0.00024797,2]
[315132923,1708866638886,-500.0,0.00024797,2]
[315132924,1708866638896,-500.0,0.00024797,2]
[315132925,1708866638905,-533.36371401,0.00024797,2]
[315132926,1708866638914,-500.0,0.00024797,2]
[315132927,1708866638923,-500.0,0.00024797,2]
[315132928,1708866638932,-150.0,0.00024797,2]
[315132929,1708866638942,-500.0,0.00024797,2]
[315132930,1708866638951,-500.0,0.00024797,2]
[315132931,1708866638961,-500.0,0.00024797,2]
[315132932,1708866638970,-1299.73,0.00024797,2]
[315132933,1708866638979,-1219.77,0.00024797,2]
[315132934,1708866638988,-500.0,0.00024797,2]
[315132935,1708866638997,-500.0,0.00024797,2]
[315132936,1708866639007,-2118.01,0.00024797,2]
[315132937,1708866639015,-997.9,0.00024797,2]
[315132938,1708866639025,-500.0,0.00024797,2]
[315132939,1708866639034,-511.6,0.00024797,2]
[315132940,1708866639043,-500.0,0.00024797,2]
[315132941,1708866639053,-500.0,0.00024797,2]
[315132942,1708866639063,-500.0,0.00024797,2]
[315132943,1708866639072,-1521.98,0.00024797,2]
[315132944,1708866639081,-500.0,0.00024797,2]
[315132945,1708866639091,-1316.94,0.00024797,2]
[315132946,1708866639100,-500.0,0.00024797,2]
[315132947,1708866639109,-500.0,0.00024797,2]
[315132948,1708866639119,-500.0,0.00024797,2]
[315132949,1708866639128,-500.0,0.00024797,2]
[315132950,1708866639137,-573.28,0.00024797,2]
[315132951,1708866639147,-500.0,0.00024797,2]
[315132952,1708866639156,-1170.39,0.00024797,2]
[315132953,1708866639165,-506.0,0.00024797,2]
[315132954,1708866639174,-523.22,0.00024797,2]
[315132955,1708866639186,-500.0,0.00024797,2]
[315132956,1708866639196,-500.0,0.00024797,2]
[315132957,1708866639205,-500.0,0.00024797,2]
[315132958,1708866639214,-532.84,0.00024797,2]
[315132959,1708866639224,-500.0,0.00024797,2]
[315132960,1708866639233,-500.0,0.00024797,2]
[315132961,1708866639242,-726.39,0.00024797,2]
[315132962,1708866639251,-500.0,0.00024797,2]
[315132963,1708866639261,-500.0,0.00024797,2]
[315132964,1708866639270,-2218.86,0.00024797,2]
[315132965,1708866639280,-1129.03,0.00024797,2]
[315132966,1708866639289,-500.0,0.00024797,2]
[315132967,1708866639298,-500.0,0.00024797,2]
[315132968,1708866639307,-500.0,0.00024797,2]
[315132969,1708866639317,-500.0,0.00024797,2]
[315132970,1708866639326,-500.0,0.00024797,2]
[315132971,1708866639335,-1038.78,0.00024797,2]
[315132972,1708866639344,-500.0,0.00024797,2]
[315132973,1708866639354,-747.82,0.00024797,2]
[315132974,1708866639363,-500.0,0.00024797,2]
[315132975,1708866639372,-500.0,0.00024797,2]
[315132976,1708866639381,-1484.92,0.00024797,2]
[315132977,1708866639391,-2643.02,0.00024797,2]
[315132978,1708866639401,-500.0,0.00024797,2]
[315132979,1708866639411,-500.0,0.00024797,2]
[315132980,1708866639420,-500.0,0.00024797,2]
[315132981,1708866639429,-1302.26,0.00024797,2]
[315132982,1708866639443,-500.0,0.00024797,2]
[315132983,1708866639452,-956.42,0.00024797,2]
[315132984,1708866639461,-1222.02,0.00024797,2]
[315132985,1708866639470,-500.0,0.00024797,2]
[315132986,1708866639481,-500.0,0.00024798,2]
[315132987,1708866639490,-500.0,0.00024798,2]
[315132988,1708866639499,-500.0,0.00024798,2]
[315132989,1708866639509,-500.0,0.00024798,2]
[315132990,1708866639518,-500.0,0.00024798,2]
[315132991,1708866639529,-500.0,0.00024798,2]
[315132992,1708866639539,-520.79508395,0.00024798,2]
[315132993,1708866639549,-500.0,0.00024798,2]
[315132994,1708866639558,-500.0,0.00024798,2]
[315132995,1708866639568,-500.0,0.00024798,2]
[315132996,1708866639577,-500.0,0.00024798,2]
[315132997,1708866639587,-1060.46,0.00024798,2]
[315132998,1708866639596,-354.80479957,0.00024798,2]
[315132999,1708866639606,-500.0,0.00024798,2]
[315133000,1708866639615,-500.0,0.00024798,2]
[315133001,1708866639625,-506.86260619,0.00024798,2]
[315133002,1708866639635,-500.0,0.00024798,2]
[315133003,1708866639645,-500.0,0.00024798,2]
[315133004,1708866639655,-500.0,0.00024798,2]
[315133005,1708866639664,-500.0,0.00024798,2]
[315133006,1708866639673,-500.0,0.00024798,2]
[315133007,1708866639683,-500.0,0.00024798,2]
[315133008,1708866639693,-500.0,0.00024798,2]
[315133009,1708866639702,-500.0,0.00024798,2]
[315133010,1708866639712,-500.0,0.00024798,2]
[315133011,1708866639721,-523.94,0.00024798,2]
[315133012,1708866639731,-500.0,0.00024798,2]
[315133013,1708866639741,-500.0,0.00024798,2]
[315133014,1708866639750,-500.0,0.00024798,2]
[315133015,1708866639760,-637.99148797,0.00024798,2]
[315133016,1708866639769,-796.27,0.00024798,2]
[315133017,1708866639778,-500.0,0.00024798,2]
[315133018,1708866639787,-500.0,0.00024798,2]
[315133019,1708866639797,-500.0,0.00024798,2]
[315133020,1708866639807,-500.0,0.00024798,2]
[315133021,1708866639817,-500.0,0.00024798,2]
[315133022,1708866639826,-500.0,0.00024798,2]
[315133023,1708866639836,-500.0,0.00024798,2]
[315133024,1708866639846,-538.86,0.00024798,2]
[315133025,1708866639855,-500.0,0.00024798,2]
[315133026,1708866639864,-500.0,0.00024798,2]
[315133027,1708866639874,-150.0,0.00024798,2]
[315133028,1708866639883,-417.51541173,0.00024798,2]
[315133029,1708866639893,-500.0,0.00024798,2]
[315133030,1708866639902,-736.77,0.00024798,2]
[315133032,1708866639912,-500.0,0.00024798,2]
[315133033,1708866639921,-500.0,0.00024798,2]
[315133035,1708866639931,-500.0,0.00024798,2]
[315133036,1708866639941,-513.99145672,0.00024798,2]
[315133037,1708866639950,-500.0,0.00024798,2]
[315133038,1708866639960,-500.0,0.00024798,2]
[315133039,1708866639970,-500.0,0.00024798,2]
[315133040,1708866639979,-500.0,0.00024798,2]
[315133041,1708866639989,-500.0,0.00024798,2]
[315133042,1708866639998,-500.0,0.00024798,2]
[315133043,1708866640008,-500.0,0.00024798,2]
[315133044,1708866640018,-500.0,0.00024798,2]
[315133045,1708866640028,-500.0,0.00024798,2]
[315133046,1708866640037,-509.71,0.00024798,2]
[315133047,1708866640047,-500.0,0.00024798,2]
[315133048,1708866640057,-500.0,0.00024798,2]
[315133049,1708866640067,-500.0,0.00024798,2]
[315133050,1708866640076,-500.0,0.00024798,2]
[315133051,1708866640087,-500.0,0.00024798,2]
[315133052,1708866640096,-500.0,0.00024798,2]
[315133053,1708866640106,-516.87,0.00024798,2]
[315133054,1708866640115,-527.02230174,0.00024798,2]
[315133055,1708866640124,-500.0,0.00024798,2]
[315133056,1708866640134,-500.0,0.00024798,2]
[315133057,1708866640143,-500.0,0.00024798,2]
[315133058,1708866640152,-654.58,0.00024798,2]
[315133059,1708866640161,-500.0,0.00024798,2]
[315133060,1708866640170,-486.04743028,0.00024798,2]
[315133061,1708866640179,-500.0,0.00024798,2]
[315133062,1708866640188,-500.0,0.00024798,2]
[315133063,1708866640197,-500.0,0.00024798,2]
[315133064,1708866640206,-500.0,0.00024798,2]
[315133065,1708866640216,-398.74516131,0.00024798,2]
[315133066,1708866640225,-500.0,0.00024798,2]
[315133067,1708866640234,-500.0,0.00024798,2]
[315133068,1708866640243,-500.0,0.00024798,2]
[315133069,1708866640252,-500.0,0.00024798,2]
[315133070,1708866640261,-500.0,0.00024798,2]
[315133071,1708866640271,-500.0,0.00024798,2]
[315133072,1708866640281,-500.0,0.00024798,2]
[315133073,1708866640291,-500.0,0.00024798,2]
[315133074,1708866640301,-500.0,0.00024798,2]
[315133075,1708866640310,-506.52,0.00024798,2]
[315133076,1708866640319,-500.0,0.00024798,2]
[315133077,1708866640328,-500.0,0.00024798,2]
[315133078,1708866640337,-500.0,0.00024798,2]
[315133079,1708866640346,-500.0,0.00024798,2]
[315133080,1708866640355,-500.0,0.00024798,2]
[315133081,1708866640365,-500.0,0.00024798,2]
[315133082,1708866640374,-545.14,0.00024798,2]
[315133083,1708866640384,-640.32,0.00024798,2]
[315133084,1708866640393,-814.07,0.00024798,2]
[315133085,1708866640402,-692.8,0.00024798,2]
[315133086,1708866640411,-500.0,0.00024798,2]
[315133087,1708866640420,-500.0,0.00024798,2]
[315133088,1708866640430,-500.0,0.00024798,2]
[315133089,1708866640441,-500.0,0.00024798,2]
[315133090,1708866640451,-500.0,0.00024798,2]
[315133091,1708866640460,-500.0,0.00024798,2]
[315133092,1708866640469,-624.96,0.00024798,2]
[315133093,1708866640478,-728.2,0.00024798,2]
[315133094,1708866640487,-500.0,0.00024798,2]
[315133095,1708866640496,-517.25,0.00024798,2]
[315133096,1708866640506,-500.0,0.00024798,2]
[315133097,1708866640515,-514.06180224,0.00024798,2]
[315133098,1708866640525,-531.25103124,0.00024798,2]
[315133099,1708866640534,-500.0,0.00024798,2]
[315133100,1708866640544,-539.23,0.00024798,2]
[315133101,1708866640553,-500.0,0.00024798,2]
[315133102,1708866640563,-500.0,0.00024798,2]
[315133103,1708866640572,-687.64,0.00024798,2]
[315133104,1708866640581,-500.0,0.00024798,2]
[315133105,1708866640590,-565.09,0.00024798,2]
[315133106,1708866640599,-500.0,0.00024798,2]
[315133107,1708866640608,-500.0,0.00024798,2]
[315133108,1708866640617,-1603.23,0.00024798,2]
[315133109,1708866640626,-512.48036149,0.00024798,2]
[315133110,1708866640635,-529.67794381,0.00024798,2]
[315133111,1708866640644,-555.40973196,0.00024798,2]
[315133112,1708866640653,-529.21151554,0.00024798,2]
[315133113,1708866640662,-500.0,0.00024798,2]
[315133114,1708866640671,-2103.17,0.00024798,2]
[315133115,1708866640680,-500.0,0.00024798,2]
[315133116,1708866640689,-1628.17,0.00024798,2]
[315133117,1708866640698,-500.0,0.00024798,2]
[315133118,1708866640707,-500.0,0.00024798,2]
[315133119,1708866640716,-530.21458701,0.00024798,2]
[315133120,1708866640725,-500.0,0.00024798,2]
[315133121,1708866640734,-730.24,0.00024798,2]
[315133122,1708866640743,-729.9,0.00024798,2]
[315133123,1708866640753,-500.0,0.00024798,2]
[315133124,1708866640762,-890.61,0.00024798,2]
[315133125,1708866640771,-517.15,0.00024798,2]
[315133126,1708866640780,-500.0,0.00024798,2]
[315133127,1708866640789,-2340.05,0.00024798,2]
[315133128,1708866640798,-500.0,0.00024798,2]
[315133129,1708866640809,-677.29,0.00024798,2]
[315133130,1708866640818,-954.05,0.00024798,2]
[315133131,1708866640827,-862.91,0.00024798,2]
[315133132,1708866640837,-500.0,0.00024798,2]
[315133133,1708866640846,-604.53,0.00024798,2]
[315133134,1708866640855,-500.0,0.00024798,2]
[315133135,1708866640865,-517.22,0.00024798,2]
[315133136,1708866640874,-843.58,0.00024798,2]
[315133137,1708866640883,-500.0,0.00024798,2]
[315133138,1708866640892,-500.0,0.00024798,2]
[315133139,1708866640901,-500.0,0.00024798,2]
[315133140,1708866640910,-500.0,0.00024798,2]
[315133141,1708866640919,-721.27,0.00024798,2]
[315133142,1708866640933,-500.0,0.00024798,2]
[315133143,1708866640942,-500.0,0.00024798,2]
[315133144,1708866640951,-800.69,0.00024798,2]
[315133145,1708866640960,-500.0,0.00024798,2]
[315133146,1708866640969,-518.6924062,0.00024798,2]
[315133147,1708866640978,-500.0,0.00024798,2]
[315133148,1708866640987,-500.0,0.00024798,2]
[315133149,1708866640996,-680.47,0.00024798,2]
[315133150,1708866641004,-702.75,0.00024798,2]
[315133151,1708866641013,-683.62,0.00024798,2]
[315133152,1708866641022,-500.0,0.00024798,2]
[315133153,1708866641031,-500.0,0.00024798,2]
[315133154,1708866641040,-500.0,0.00024798,2]
[315133155,1708866641048,-520.8704777,0.00024798,2]
[315133156,1708866641059,-500.0,0.00024798,2]
[315133157,1708866641068,-500.0,0.00024798,2]
[315133158,1708866641077,-500.0,0.00024798,2]
[315133159,1708866641085,-500.0,0.00024798,2]
[315133160,1708866641094,-786.72,0.00024798,2]
[315133161,1708866641103,-500.0,0.00024798,2]
[315133162,1708866641114,-500.0,0.00024798,2]
[315133163,1708866641123,-616.39,0.00024798,2]
[315133164,1708866641132,-639.86,0.00024798,2]
[315133165,1708866641141,-500.0,0.00024798,2]
[315133166,1708866641150,-739.28,0.00024798,2]
[315133167,1708866641159,-500.0,0.00024798,2]
[315133168,1708866641167,-500.0,0.00024798,2]
[315133169,1708866641177,-657.88,0.00024798,2]
[315133170,1708866641186,-500.0,0.00024798,2]
[315133171,1708866641195,-674.98,0.00024798,2]
[315133172,1708866641204,-716.42,0.00024798,2]
[315133173,1708866641213,-605.07,0.00024798,2]
[315133174,1708866641223,-500.0,0.00024798,2]
[315133175,1708866641232,-500.0,0.00024798,2]
[315133176,1708866641241,-1029.52,0.00024798,2]
[315133177,1708866641251,-1608.44,0.00024798,2]
[315133178,1708866641261,-1500.0,0.000248,2]
[315133179,1708866641270,-193.85401589,0.00024803,2]
[315133180,1708866641465,-150.0,0.00024804,2]
[315133181,1708866641476,-150.0,0.00024806,2]
[315133182,1708866641486,-150.0,0.00024806,2]
[315133183,1708866641495,-2844.80696037,0.00024809,2]
[315133184,1708866641504,-300.0,0.00024813,2]
[315133185,1708866641513,-1500.0,0.00024814,2]
[315133186,1708866641522,-150.0,0.00024815,2]
[315133187,1708866641532,-150.0,0.00024815,2]
[315133188,1708866641541,-150.0,0.00024815,2]
[315133189,1708866641550,-1500.0,0.00024815,2]
[315133190,1708866641560,-150.0,0.00024818,2]
[315133191,1708866641569,-150.0,0.00024819,2]
[315133192,1708866641578,-150.0,0.0002482,2]
[315133193,1708866641587,-150.0,0.00024821,2]
[315133194,1708866641596,-150.0,0.00024821,2]
[315133195,1708866641605,-150.0,0.00024822,2]
[315133196,1708866641619,-150.0,0.00024825,2]
[315133197,1708866641628,-24217.31058308,0.00024825,2]
[315133199,1708866641637,-150.0,0.00024827,2]
[315133201,1708866641646,-150.0,0.00024828,2]
[315133203,1708866641655,-150.0,0.0002483,2]
[315133204,1708866641664,-150.0,0.00024834,2]
[315133207,1708866641674,-150.0,0.00024838,2]
[315133209,1708866641683,-150.0,0.00024839,2]
[315133211,1708866641693,-300.0,0.00024846,2]
[315133213,1708866641702,-302.4026063,0.00024846,2]
[315133214,1708866641711,-1500.0,0.00024852,2]
[315133217,1708866641720,-364.24407099,0.00024855,2]
[315133220,1708866641730,-150.0,0.00024859,2]
[315133223,1708866641739,-150.0,0.00024859,2]
[315133226,1708866641748,-300.0,0.00024859,2]
[315133229,1708866641758,-150.0,0.00024861,2]
[315133233,1708866641768,-150.0,0.00024861,2]
[315133236,1708866641777,-150.0,0.00024865,2]
[315133237,1708866641786,-150.0,0.00024865,2]
[315133239,1708866641795,-150.0,0.00024876,2]
[315133242,1708866641805,-1500.0,0.00024888,2]
[315133244,1708866641815,-300.0,0.00024889,2]
[315133246,1708866641824,-186.83697916,0.0002489,2]
[315133248,1708866641833,-150.0,0.00024893,2]
[315133250,1708866641842,-616.25,0.00024893,2]
[315133253,1708866641854,-616.25,0.00024893,2]
[315133255,1708866641863,-616.25,0.00024893,2]
[315133257,1708866641872,-616.25,0.00024893,2]
[315133259,1708866641881,-616.25,0.00024893,2]
[315133261,1708866641890,-636.94,0.00024893,2]
[315133262,1708866641900,-636.94,0.00024893,2]
[315133263,1708866641909,-636.94,0.00024893,2]
[315133264,1708866641919,-636.94,0.00024893,2]
[315133265,1708866641928,-636.94,0.00024893,2]
[315133266,1708866641938,-500.0,0.00024893,2]
[315133267,1708866641947,-500.0,0.00024893,2]
[315133268,1708866641956,-619.16,0.00024893,2]
[315133269,1708866641966,-500.0,0.00024893,2]
[315133270,1708866641975,-619.16,0.00024893,2]
[315133271,1708866641985,-500.0,0.00024893,2]
[315133272,1708866641994,-619.16,0.00024893,2]
[315133274,1708866642003,-619.16,0.00024893,2]
[315133276,1708866642012,-500.0,0.00024893,2]
[315133278,1708866642022,-619.16,0.00024893,2]
[315133280,1708866642031,-290.82,0.00024893,2]
[315133282,1708866642040,-500.0,0.00024893,2]
[315133284,1708866642050,-500.0,0.00024893,2]
[315133286,1708866642060,-500.0,0.00024893,2]
[315133288,1708866642070,-500.0,0.00024893,2]
[315133290,1708866642080,-500.0,0.00024893,2]
[315133292,1708866642089,-500.0,0.00024893,2]
[315133294,1708866642099,-500.0,0.00024893,2]
[315133296,1708866642108,-500.0,0.00024893,2]
[315133298,1708866642117,-500.0,0.00024893,2]
[315133300,1708866642126,-500.0,0.00024893,2]
[315133302,1708866642135,-565.21,0.00024893,2]
[315133304,1708866642144,-565.21,0.00024893,2]
[315133306,1708866642153,-565.21,0.00024893,2]
[315133308,1708866642162,-565.21,0.00024893,2]
[315133310,1708866642172,-565.21,0.00024893,2]
[315133312,1708866642182,-500.0,0.00024893,2]
[315133314,1708866642192,-500.0,0.00024893,2]
[315133316,1708866642201,-500.0,0.00024893,2]
[315133318,1708866642211,-500.0,0.00024893,2]
[315133320,1708866642220,-500.0,0.00024893,2]
[315133322,1708866642229,-956.42,0.00024893,2]
[315133324,1708866642238,-245464.66931116,0.00024894,4]
[315133353,1708866642538,-9975.47039947,0.00024894,4]
[315133354,1708866642565,-150.0,0.00024786,2]
[315133355,1708866642574,-159456.24848475,0.00024894,4]
[315133356,1708866642592,-373.90204875,0.00024894,4]
[315133357,1708866642612,-517.9614323,0.00024894,4]
[315133358,1708866642628,-651.63451527,0.00024894,4]
[315133383,1708866643248,-150.0,0.00024735,2]
[315133384,1708866643258,-150.0,0.00024742,2]
[315133385,1708866643268,-150.0,0.00024758,2]
[315133386,1708866643277,-150.0,0.00024761,2]
[315133387,1708866643287,-150.0,0.00024766,2]
[315133388,1708866643295,-150.0,0.00024772,2]
[315133389,1708866643304,-150.0,0.00024773,2]
[315133390,1708866643313,-150.0,0.00024774,2]
[315133391,1708866643323,-150.0,0.00024787,2]
[315133392,1708866643332,-150.0,0.00024788,2]
[315133393,1708866643341,-500.0,0.00024794,2]
[315133394,1708866643351,-150.0,0.00024799,2]
[315133395,1708866643360,-150.0,0.000248,2]
[315133396,1708866643369,-150.0,0.00024806,2]
[315133397,1708866643379,-150.0,0.00024809,2]
[315133398,1708866643388,-150.0,0.00024828,2]
[315133399,1708866643397,-150.0,0.00024842,2]
[315133400,1708866643406,-150.0,0.00024856,2]
[315133401,1708866643416,-93353.26740425,0.00024894,4]
[315133402,1708866643428,-15341.42168271,0.00024894,4]
[315133403,1708866643442,-4570.5,0.00024894,4]
[315133404,1708866643461,-22501.14938161,0.00024894,4]
[315133405,1708866643474,-5442.69130335,0.00024894,4]
[315133406,1708866643494,-304.2,0.00024797,2]
[315133407,1708866643506,-149.99707476,0.00024797,2]
[315133408,1708866643515,-1842.92878718,0.00024894,4]
[315133409,1708866643930,-335.74335286,0.00024894,4]
[315133410,1708866643941,-558.0,0.00024894,4]
[315133411,1708866643956,-370.07563222,0.00024894,4]
[315133412,1708866643967,-700.0,0.00024894,4]
[315133413,1708866644239,-544.54770575,0.00024894,4]
[315133414,1708866644254,-2444.48264607,0.00024894,4]
[315133415,1708866644264,-48942.98361498,0.00024894,4]
[315133416,1708866644283,-1791.95970046,0.00024894,4]
[315133417,1708866644298,-510.5,0.00024894,4]
[315133418,1708866644309,-608.92,0.00024894,4]
[315133419,1708866644320,-1011.9668726,0.00024894,4]
[315133420,1708866644372,-1183.04116382,0.00024894,4]
[315133431,1708866646108,-500.0,0.00024694,2]
[315133432,1708866646117,-316.24022833,0.00024792,2]
[315133433,1708866646126,-109.05977167,0.00024794,2]
[315133434,1708866646137,-390.94022833,0.00024794,2]
[315133435,1708866646146,-645.28835167,0.00024794,2]
[315133436,1708866646157,-1298.749997,0.00024794,2]
[315133437,1708866646181,-463.76165133,0.00024794,2]
[315133438,1708866646190,-505.5768233,0.00024794,2]
[315133439,1708866646198,-500.0,0.00024797,2]
[315133440,1708866646208,-2407.8,0.00024797,2]
[315133441,1708866646217,-746.75447837,0.00024894,4]
[315133442,1708866646227,-325006.57812281,0.00024894,4]
[315133443,1708866646237,-290.58514286,0.00024894,2]
[315133444,1708866646246,-156.56096733,0.00024894,2]
[315133445,1708866646255,-500.0,0.00024894,2]
[315133446,1708866646263,-500.0,0.00024894,2]
[315133447,1708866646273,-500.0,0.00024894,2]
[315133448,1708866646281,-457.91423774,0.00024894,2]
[315133449,1708866646290,-500.0,0.00024894,2]
[315133450,1708866646299,-500.0,0.00024894,2]
[315133451,1708866646308,-500.0,0.00024894,2]
[315133452,1708866646316,-500.0,0.00024894,2]
[315133453,1708866646325,-500.0,0.00024894,2]
[315133454,1708866646334,-500.0,0.00024894,2]
[315133455,1708866646343,-500.0,0.00024894,2]
[315133456,1708866646353,-500.0,0.00024894,2]
[315133457,1708866646361,-500.0,0.00024894,2]
[315133458,1708866646370,-500.0,0.00024894,2]
[315133459,1708866646379,-500.0,0.00024894,2]
[315133460,1708866646388,-500.0,0.00024894,2]
[315133461,1708866646397,-500.0,0.00024894,2]
[315133462,1708866646406,-566.00306004,0.00024894,2]
[315133463,1708866646415,-500.0,0.00024894,2]
[315133464,1708866646424,-150.0,0.00024894,2]
[315133465,1708866646435,-500.0,0.00024894,2]
[315133466,1708866646444,-500.0,0.00024894,2]
[315133468,1708866646453,-500.0,0.00024894,2]
[315133470,1708866646463,-500.0,0.00024894,2]
[315133472,1708866646472,-500.0,0.00024894,2]
[315133474,1708866646482,-500.0,0.00024894,2]
[315133476,1708866646491,-500.0,0.00024894,2]
[315133478,1708866646500,-500.0,0.00024894,2]
[315133480,1708866646510,-500.0,0.00024894,2]